[Event "CCT Julius Baer-D3 2024"]
[Site "Online"]
[Date "2024.09.27"]
[Round "2.1"]
[White "Santos Latasa, Jaime"]
[Black "Keymer, Vincent"]
[Result "1/2-1/2"]
[ECO "C50"]
[WhiteElo "2624"]
[BlackElo "2730"]
[Annotator "TA"]
[PlyCount "148"]
[EventDate "2024.09.25"]
[EventType "swiss"]
[EventCountry "NET"]
[SourceTitle "playchess.com"]
[Source "ChessBase"]
[SourceQuality "1"]
[TimeControl "600+2"]

{[%evp 82,148,-26,-26,-27,-27,-27,-27,-27,-27,0,0,15,16,15,15,16,0,0,0,0,0,0,0,0,0,44,0,0,0,0,-8,0,0,0,0,0,0,0,0,0,0,0,0,0,0,0,0,0,0,0,0,0,0,0,0,0,0,0,0,0,0,0,0,0,0,0,0,0]} 1. e4 {[%emt 0:00:03]} e5 {[%emt 0:00:04]} 2. Nf3 {[%emt 0:00:02]} Nc6 {[%emt 0:00:00]} 3. Bc4 {[%emt 0:00:01]} Nf6 {[%emt 0:00:01]} 4. d3 {[%emt 0:00:02]} Bc5 {[%emt 0:00:01]} 5. O-O {[%emt 0:00:02]} a6 {[%emt 0:00:02]} 6. a4 {[%emt 0:00:02] C50: Hungarian Defence and Giuoco Pianissimo.} d6 {[%emt 0:00:11]} 7. c3 {[%emt 0:00:01]} Ba7 {[%emt 0:00:02]} 8. Re1 {[%emt 0:00:02]} O-O {[%emt 0:00:02]} 9. Nbd2 {[%emt 0:00:02]} Ng4 {[%emt 0:00:38]} 10. Re2 {[%emt 0:00:02]} Kh8 {[%emt 0:00:04]} 11. h3 {[%emt 0:00:01]} f5 {[%emt 0:00:37]} 12. b4 $146 {[%emt 0:00:22]} ({Predecessor:} 12. Nf1 fxe4 13. dxe4 Nh6 14. Re1 Qf6 15. Ng3 Bxh3 16. Bg5 Qg6 17. gxh3 Rxf3 18. Qxf3 Qxg5 {0-1 Alekseenko,K (2671)-Ding,L (2811) FIDE World Cup 2019 (4.4)}) 12... Nf6 {[%emt 0:00:27]} 13. Bb3 {[%emt 0:00:13]} fxe4 {[%emt 0:00:17]} 14. dxe4 {[%emt 0:00:23]} Nh5 {[%emt 0:00:14]} 15. Re1 {[%emt 0:00:08]} Qf6 {[%emt 0:00:09]} 16. Nf1 {[%emt 0:02:12]} Bxh3 {[%emt 0:00:04]} 17. Be3 {[%emt 0:00:39]} Bd7 {[%emt 0:02:20]} 18. Bxa7 {[%emt 0:00:11]} Rxa7 {[%emt 0:00:00]} 19. Ne3 {[%emt 0:00:12]} Ne7 {[%emt 0:00:15]} 20. Ra2 {[%emt 0:00:10]} Raa8 {[%emt 0:00:21]} 21. Nh2 {[%emt 0:00:22]} Nf4 {[%emt 0:00:11]} 22. Nhg4 {[%emt 0:00:03]} Qg5 {[%emt 0:00:10]} 23. g3 {[%emt 0:00:09]} h5 {[%emt 0:00:26]} 24. Nh2 {[%emt 0:00:03]} Qg6 {[%emt 0:00:43]} 25. Nf3 {[%emt 0:00:16]} Nh3+ {[%emt 0:00:25]} 26. Kg2 {[%emt 0:00:08]} Qxe4 {[%emt 0:00:20]} 27. Nd5 {[%emt 0:00:15]} Qg4 {[%emt 0:00:40]} 28. Nxe5 {[%emt 0:01:29]} dxe5 {[%emt 0:01:26]} 29. Qxg4 {[%emt 0:00:02]} hxg4 {[%emt 0:00:26]} 30. Nxe7 {[%emt 0:00:02]} Rf6 {[%emt 0:00:11]} 31. Rxe5 {[%emt 0:00:03]} g6 {[%emt 0:00:00]} 32. Nd5 {[%emt 0:00:39]} Bc6 {[%emt 0:00:03]} 33. Rd2 {[%emt 0:00:08]} Raf8 {[%emt 0:00:02]} 34. Ree2 {[%emt 0:00:07]} Rf5 {[%emt 0:00:05]} 35. c4 {[%emt 0:00:09]} b5 {[%emt 0:00:01]} 36. Bc2 {[%emt 0:00:12]} bxc4 {[%emt 0:00:08]} 37. Be4 {[%emt 0:00:02]} Bxd5 {[%emt 0:00:05]} 38. Rxd5 {[%emt 0:00:13]} Rxf2+ {[%emt 0:00:01]} 39. Rxf2 {[%emt 0:00:01]} Rxf2+ {[%emt 0:00:00]} 40. Kh1 {[%emt 0:00:01]} Rf6 {[%emt 0:00:05]} 41. Kg2 {[%emt 0:00:06] [#]} Re6 $2 {[%emt 0:00:03]} (41... Rf2+ 42. Kh1 $19) ({Black should play} 41... c3 $1 $19 42. Rc5 Rf2+ 43. Kh1) 42. Rd4 $11 {[%emt 0:00:05]} Ng5 {[%emt 0:00:02]} 43. Bb7 {[%emt 0:00:06]} c3 {[%emt 0:00:01]} 44. Rc4 $1 {[%emt 0:00:03]} Re2+ {[%emt 0:00:03]} 45. Kf1 {[%emt 0:00:02]} Re3 {[%emt 0:00:01]} (45... Rb2 {simplifies} 46. Rxc3 Rb1+ 47. Kg2 Rxb4 48. Bxa6 Rxa4 49. Bd3 Kh7) 46. a5 {[%emt 0:00:04]} Nf3 {[%emt 0:00:03]} 47. Kf2 {[%emt 0:00:07]} Rd3 $1 {[%emt 0:00:02]} 48. Rxc7 {[%emt 0:00:05]} (48. Rxg4 $2 Ne5 49. Rh4+ Kg7 $19) 48... Rd4 $1 {[%emt 0:00:03]} 49. b5 {[%emt 0:00:04]} (49. Rxc3 {simplifies} Rxb4 50. Bxf3 gxf3 51. Rc6) 49... axb5 {[%emt 0:00:03]} 50. a6 {[%emt 0:00:03]} Ra4 {[%emt 0:00:01]} 51. Rxc3 {[%emt 0:00:05]} b4 {[%emt 0:00:01]} 52. Rc4 {[%emt 0:00:03]} Ra2+ {[%emt 0:00:01]} 53. Ke3 {[%emt 0:00:02]} b3 {[%emt 0:00:00]} 54. Rxg4 {[%emt 0:00:09]} b2 {[%emt 0:00:03]} 55. Rb4 {[%emt 0:00:02]} (55. Kxf3 b1=Q (55... b1=R 56. Rxg6 Rf1+ 57. Kg4 $11) 56. Rd4 Ra3+ 57. Kg2 Qb2+ 58. Kh3 Qxd4) 55... Nd2 {[%emt 0:00:01]} 56. Bd5 {[%emt 0:00:09]} Rxa6 {[%emt 0:00:02]} 57. Rxb2 {[%emt 0:00:09]} (57. Kxd2 $5 Rd6 $8 58. Rxb2 (58. Rb8+ Kg7 $17) 58... Rxd5+ 59. Ke2 $11) 57... Nf1+ {[%emt 0:00:01]} 58. Kf2 {[%emt 0:00:04]} Rf6+ {[%emt 0:00:01]} 59. Bf3 {[%emt 0:00:04]} Nh2 {[%emt 0:00:01]} 60. Rb3 {[%emt 0:00:01]} Kg7 {[%emt 0:00:04]} 61. Kg2 {[%emt 0:00:01]} Nxf3 {[%emt 0:00:00]} 62. Rxf3 {[%emt 0:00:01]} Rxf3 {[%emt 0:00:00]} 63. Kxf3 {[%emt 0:00:00]} Kf6 {[%emt 0:00:01]} 64. Kf4 {[%emt 0:00:01]} g5+ {[%emt 0:00:01]} 65. Ke4 {[%emt 0:00:02]} Ke6 {[%emt 0:00:01]} 66. g4 {[%emt 0:00:01]} Kf6 {[%emt 0:00:00]} 67. Kd5 {[%emt 0:00:01]} Kf7 {[%emt 0:00:01]} 68. Ke5 {[%emt 0:00:00]} Ke7 {[%emt 0:00:00]} 69. Kf5 {[%emt 0:00:01]} Kf7 {[%emt 0:00:00]} 70. Kxg5 {[%emt 0:00:00]} Kg7 {[%emt 0:00:01]} 71. Kf5 {[%emt 0:00:01]} Kf7 {[%emt 0:00:00]} 72. g5 {[%emt 0:00:00]} Kg7 {[%emt 0:00:01]} 73. g6 {[%emt 0:00:00]} Kg8 {[%emt 0:00:00]} 74. g7 {[%emt 0:00:01]} Kxg7 {[%emt 0:00:01]} 1/2-1/2

[Event "CCT Julius Baer-D3 2024"]
[Site "Online"]
[Date "2024.09.27"]
[Round "2.1"]
[White "Theodorou, Nikolas"]
[Black "Makarian, Rudik"]
[Result "1/2-1/2"]
[ECO "B51"]
[WhiteElo "2619"]
[BlackElo "2550"]
[Annotator "TA"]
[PlyCount "121"]
[EventDate "2024.09.25"]
[EventType "swiss"]
[EventCountry "NET"]
[SourceTitle "playchess.com"]
[Source "ChessBase"]
[SourceQuality "1"]
[TimeControl "600+2"]

{[%evp 50,121,-45,-51,-40,-37,-39,-38,-30,-35,-18,-30,0,0,0,-72,0,-77,0,-82,-65,-68,-16,-17,-14,-76,-34,-31,-30,-30,-30,-30,-39,-39,-40,-20,-16,-14,0,0,0,-110,0,-110,0,-110,0,-110,-110,-110,-110,-110,0,0,0,0,0,0,8,0,0,0,0,0,0,0,0,0,0,0,0,0,0,0]} 1. e4 {[%emt 0:00:02]} c5 {[%emt 0:00:04]} 2. Nf3 {[%emt 0:00:01]} d6 {[%emt 0:00:07]} 3. Bb5+ {[%emt 0:00:02]} Nd7 {[%emt 0:00:02]} 4. a4 {[%emt 0:00:09]} Ngf6 {[%emt 0:00:02]} 5. Nc3 {[%emt 0:00:01]} g6 {[%emt 0:00:06]} 6. d4 {[%emt 0:00:01] B51: Sicilian: Moscow Variation (3 Bb5+) without 3...Bd7.} cxd4 {[%emt 0:00:05]} 7. Nxd4 {[%emt 0:00:00]} Bg7 {[%emt 0:00:04]} 8. O-O {[%emt 0:00:01]} a6 {[%emt 0:00:08]} 9. Bc4 {[%emt 0:00:01]} O-O {[%emt 0:00:02]} 10. Re1 {[%emt 0:00:02]} Qc7 {[%emt 0:01:01]} 11. Ba2 {[%emt 0:00:07]} Nc5 {[%emt 0:00:33]} 12. h3 $146 {[%emt 0:00:10]} ({Predecessor:} 12. Bg5 e6 13. Qd2 Bd7 14. a5 b5 15. axb6 Qxb6 16. Nb3 Rfc8 17. Rad1 Ne8 18. Be3 Nxb3 19. Bxb3 Qb4 20. Bd4 a5 {½-½ Vratny,R (2179)-Vitak,P (2252) CZE-chT2F 1516 2015 (10.32)}) 12... e6 {[%emt 0:00:10]} 13. Bg5 {[%emt 0:00:34]} b6 {[%emt 0:00:36]} 14. Qf3 {[%emt 0:00:40]} Nfd7 {[%emt 0:00:44]} 15. Rad1 {[%emt 0:00:02]} Bb7 {[%emt 0:00:05]} 16. Qg3 {[%emt 0:00:21]} Ne5 {[%emt 0:00:12]} 17. h4 {[%emt 0:02:07]} h5 {[%emt 0:00:34]} 18. f3 {[%emt 0:00:04]} Kh7 {[%emt 0:00:12]} 19. Kh1 {[%emt 0:00:03]} Rac8 {[%emt 0:00:13]} 20. Nde2 {[%emt 0:00:11]} Bc6 {[%emt 0:00:20]} 21. Bb3 {[%emt 0:00:26]} b5 {[%emt 0:00:11]} 22. axb5 {[%emt 0:00:02]} axb5 {[%emt 0:00:00]} 23. Nd4 {[%emt 0:00:05]} b4 {[%emt 0:00:07]} 24. Nce2 {[%emt 0:00:04]} Bd7 {[%emt 0:00:47]} 25. Be3 {[%emt 0:00:20]} Qb7 {[%emt 0:00:18]} 26. Nf4 {[%emt 0:00:04]} Nxb3 {[%emt 0:00:13]} 27. cxb3 {[%emt 0:00:01]} Nc6 {[%emt 0:00:07]} 28. Nxc6 {[%emt 0:00:40]} Rxc6 {[%emt 0:00:12]} 29. Rd2 {[%emt 0:00:04]} Rfc8 {[%emt 0:00:09]} 30. Red1 {[%emt 0:00:01]} Qa6 {[%emt 0:00:16]} 31. Qg5 {[%emt 0:00:13]} Be8 {[%emt 0:00:43]} 32. Qe7 {[%emt 0:00:31]} (32. e5 $11) 32... Kg8 {[%emt 0:00:01]} (32... Qa2 $17 33. Nd3 Qxb3) 33. Kh2 {[%emt 0:01:32]} (33. Rxd6 $11 Rxd6 34. Qxd6 (34. Rxd6 Qf1+ 35. Kh2 Bf8 $11) 34... Qxd6 35. Rxd6) 33... Qb5 {[%emt 0:00:34]} ({Black should play} 33... Be5 $17 34. Kh1 Qa2) 34. Ne2 {[%emt 0:00:26]} (34. Rxd6 $11 R6c7 35. Qg5) 34... R6c7 {[%emt 0:00:40]} 35. Qg5 {[%emt 0:00:01]} Qxg5 {[%emt 0:00:24]} (35... e5 $15) 36. hxg5 $11 {[%emt 0:00:00]} Rc2 {[%emt 0:00:04]} 37. f4 {[%emt 0:00:02]} (37. Kg1 $11) 37... Rxd2 {[%emt 0:00:20]} 38. Rxd2 {[%emt 0:00:00]} Bc6 {[%emt 0:00:01]} 39. Rc2 {[%emt 0:00:20]} Bb7 {[%emt 0:00:01]} 40. Rxc8+ {[%emt 0:00:00]} Bxc8 {[%emt 0:00:01]} 41. Bd2 {[%emt 0:00:00]} Ba6 {[%emt 0:00:17]} 42. Ng1 {[%emt 0:00:02]} Bxb2 {[%emt 0:00:22]} 43. Bxb4 {[%emt 0:00:00]} Bd3 {[%emt 0:00:09]} 44. Bxd6 {[%emt 0:00:05]} Bxe4 {[%emt 0:00:00]} 45. Nf3 {[%emt 0:00:05]} (45. Kg3 $11 {remains equal.}) 45... f6 {[%emt 0:00:07]} (45... Bxf3 $17 46. gxf3 Bg7) 46. b4 {[%emt 0:00:12] [#]} (46. Kg3 $11 {keeps the balance.}) 46... Kf7 {[%emt 0:00:04]} (46... Bxf3 $1 $17 47. gxf3 Kf7) 47. gxf6 {[%emt 0:00:07]} (47. Kg3 $11) 47... Bxf6 {[%emt 0:00:04]} (47... Bxf3 $1 $17 48. gxf3 Bxf6) 48. b5 {[%emt 0:00:36]} (48. Ne5+ $11 Ke8 49. b5) 48... Bxf3 $17 {[%emt 0:00:02]} 49. gxf3 {[%emt 0:00:00]} Bd8 {[%emt 0:00:01]} 50. Bc5 {[%emt 0:00:30]} Bc7 {[%emt 0:00:01]} (50... Be7 $17 51. Bf2 Ke8) 51. b6 $11 {[%emt 0:00:01]} Bxf4+ {[%emt 0:00:01]} 52. Kh3 {[%emt 0:00:05]} Ke8 {[%emt 0:00:02]} 53. b7 {[%emt 0:00:04]} g5 {[%emt 0:00:02]} 54. Be3 {[%emt 0:00:19]} Bb8 {[%emt 0:00:05]} 55. Bxg5 {[%emt 0:00:01]} Kd7 {[%emt 0:00:00]} 56. Kh4 {[%emt 0:00:02]} Kc6 {[%emt 0:00:00]} 57. Kxh5 {[%emt 0:00:01]} Kxb7 {[%emt 0:00:01]} 58. Kg6 {[%emt 0:00:00]} Kc6 {[%emt 0:00:00]} 59. f4 {[%emt 0:00:04]} Kd5 {[%emt 0:00:02]} 60. f5 {[%emt 0:00:01]} exf5 {[%emt 0:00:00]} 61. Kxf5 {[%emt 0:00:01]} 1/2-1/2

[Event "CCT Julius Baer-D3 2024"]
[Site "Online"]
[Date "2024.09.27"]
[Round "2.1"]
[White "Kamsky, Gata"]
[Black "Sindarov, Javokhir"]
[Result "1/2-1/2"]
[ECO "A48"]
[WhiteElo "2609"]
[BlackElo "2677"]
[Annotator "TA"]
[PlyCount "68"]
[EventDate "2024.09.25"]
[EventType "swiss"]
[EventCountry "NET"]
[SourceTitle "playchess.com"]
[Source "ChessBase"]
[SourceQuality "1"]
[TimeControl "600+2"]

{[%evp 10,68,14,0,6,2,9,12,16,4,18,19,7,23,29,25,57,49,53,29,35,27,62,33,39,40,69,18,31,29,43,28,36,29,49,0,0,0,0,0,0,0,7,1,8,0,0,0,0,0,0,0,22,0,0,0,0,0,0,0,0]} 1. d4 {[%emt 0:00:03]} Nf6 {[%emt 0:00:05]} 2. Bf4 {[%emt 0:00:09]} g6 {[%emt 0:00:39]} 3. c3 {[%emt 0:00:04]} Bg7 {[%emt 0:00:11]} 4. Nf3 {[%emt 0:00:03]} O-O {[%emt 0:00:11]} 5. Nbd2 {[%emt 0:00:09]} d6 {[%emt 0:00:06]} 6. h3 {[%emt 0:00:02]} Nfd7 {[%emt 0:00:35]} 7. e4 {[%emt 0:01:43]} e5 {[%emt 0:00:03]} 8. dxe5 {[%emt 0:00:03]} Nxe5 {[%emt 0:00:01]} 9. Nxe5 {[%emt 0:00:03]} dxe5 {[%emt 0:00:34]} 10. Be3 {[%emt 0:00:04]} Qe7 {[%emt 0:00:02]} 11. Bc4 {[%emt 0:00:11]} b6 {[%emt 0:00:35]} 12. a4 {[%emt 0:01:16]} Bb7 {[%emt 0:01:46]} 13. h4 {[%emt 0:00:05] Black is weak on the light squares} Ba6 {[%emt 0:00:45]} 14. h5 {[%emt 0:00:18]} Bxc4 {[%emt 0:00:02]} 15. Nxc4 {[%emt 0:00:03]} Qe6 {[%emt 0:00:00]} 16. Qd5 {[%emt 0:00:37]} Qxd5 {[%emt 0:00:01]} 17. exd5 {[%emt 0:00:01]} Nd7 {[%emt 0:00:01]} 18. hxg6 {[%emt 0:00:03] White is more active.} ({Better is} 18. O-O-O $14) 18... hxg6 $11 {[%emt 0:00:02]} 19. O-O-O {[%emt 0:00:10]} f5 {[%emt 0:00:06]} 20. f3 {[%emt 0:00:03]} Kf7 {[%emt 0:00:01]} 21. Kc2 {[%emt 0:00:54]} Rh8 {[%emt 0:00:03]} 22. Na3 {[%emt 0:00:16]} (22. b4 $14 {feels stronger.}) 22... a6 {[%emt 0:00:27] The position is equal.} 23. Nc4 {[%emt 0:00:11][%cal Ba3c4,Bc4a5,Ba5c6,Bc6a7,Ba7b5][%mdl 32]} Rxh1 {[%emt 0:00:27]} 24. Rxh1 {[%emt 0:00:03]} b5 {[%emt 0:00:57]} 25. Na5 {[%emt 0:01:29]} Nf6 {[%emt 0:00:08]} 26. Rd1 $1 {[%emt 0:00:02]} Bf8 {[%emt 0:00:01]} 27. axb5 {[%emt 0:00:10]} axb5 {[%emt 0:00:01]} 28. Nc6 {[%emt 0:00:02]} Bd6 {[%emt 0:00:08]} 29. Bg5 {[%emt 0:00:15]} Rh8 {[%emt 0:00:29]} 30. Na7 {[%emt 0:00:11]} b4 {[%emt 0:00:41]} 31. Nb5 {[%emt 0:00:55]} bxc3 {[%emt 0:00:03]} 32. bxc3 {[%emt 0:00:02]} Rh2 {[%emt 0:00:05]} 33. Rd2 {[%emt 0:00:02]} Rh5 {[%emt 0:00:50]} 34. Bxf6 {[%emt 0:00:08]} Kxf6 {[%emt 0:00:00] Weighted Error Value: White=0.09 (flawless) /Black=0.07 (flawless) .  Mistake:       	White=2     	---        Inaccurate:     	---       	Black=3      OK:         	White=11    	Black=10     Best:        	---       	Black=1      Strong:       	White=1     	---} 1/2-1/2

[Event "CCT Julius Baer-D3 2024"]
[Site "Online"]
[Date "2024.09.27"]
[Round "2.2"]
[White "Caruana, Fabiano"]
[Black "Alekseenko, Kirill"]
[Result "1-0"]
[ECO "A20"]
[WhiteElo "2798"]
[BlackElo "2679"]
[Annotator "TA"]
[PlyCount "81"]
[EventDate "2024.09.25"]
[EventType "swiss"]
[EventCountry "NET"]
[SourceTitle "playchess.com"]
[Source "ChessBase"]
[SourceQuality "1"]
[TimeControl "600+2"]

{[%evp 19,81,-17,-17,-20,-13,0,8,-16,-9,-16,3,-8,-12,-8,0,0,0,0,0,0,25,23,18,32,36,28,16,25,24,0,29,0,0,0,0,-2,0,0,0,0,54,39,162,170,180,185,174,150,293,281,704,679,772,762,10798,5712,12418,29957,29963,29963,29969,29970,29970,11966]} 1. c4 {[%emt 0:00:04]} e5 {[%emt 0:00:14]} 2. d3 {[%emt 0:00:07]} Bb4+ {[%emt 0:00:03]} 3. Nd2 {[%emt 0:00:02]} c5 {[%emt 0:00:03]} 4. Ngf3 {[%emt 0:00:03]} d6 $146 {[%emt 0:00:06]} ({Predecessor:} 4... Nc6 5. g3 d6 6. Bg2 Nge7 7. O-O Ba5 8. b3 O-O 9. Bb2 h6 10. e3 Be6 {1-0 Caruana,F (2796)-Firouzja,A (2744) Bucharest Superbet Classic 4th playoff rapid 2024 (2)}) 5. g3 {[%emt 0:00:01]} f5 {[%emt 0:00:03]} 6. Bg2 {[%emt 0:00:11] A20: English Opening: 1...e5.} Nf6 {[%emt 0:00:01]} 7. O-O {[%emt 0:00:13]} Ba5 {[%emt 0:00:12]} 8. Nb1 {[%emt 0:00:22]} O-O {[%emt 0:00:08]} 9. Bg5 {[%emt 0:00:06]} h6 {[%emt 0:00:11]} 10. Bxf6 {[%emt 0:00:02]} Qxf6 {[%emt 0:00:00]} 11. Nc3 {[%emt 0:00:09]} Nc6 {[%emt 0:00:04]} 12. Nd5 {[%emt 0:00:07]} Qf7 {[%emt 0:00:03]} 13. e3 {[%emt 0:00:28]} Be6 {[%emt 0:00:20]} 14. a3 {[%emt 0:00:04]} Ne7 {[%emt 0:00:59]} 15. Nxe7+ {[%emt 0:00:38]} Qxe7 {[%emt 0:00:01]} 16. Rb1 {[%emt 0:00:02]} Rab8 {[%emt 0:01:07]} 17. b4 {[%emt 0:00:03]} Bc7 {[%emt 0:00:21]} 18. bxc5 {[%emt 0:00:55]} dxc5 {[%emt 0:00:03]} 19. Nh4 {[%emt 0:00:06]} Rfd8 {[%emt 0:00:07]} 20. Bd5 $1 {[%emt 0:00:35]} (20. Rxb7 Rxb7 21. Bxb7 g5 $15) 20... Bxd5 {[%emt 0:00:39]} 21. cxd5 {[%emt 0:00:00]} Qf7 {[%emt 0:00:18]} 22. e4 {[%emt 0:00:03]} fxe4 {[%emt 0:00:02]} 23. dxe4 {[%emt 0:00:00]} b5 {[%emt 0:00:08]} 24. a4 {[%emt 0:00:28]} a6 $1 {[%emt 0:00:04]} (24... b4 $6 25. Qc2 $16) 25. axb5 {[%emt 0:00:06]} axb5 {[%emt 0:00:00]} 26. Nf5 {[%emt 0:00:01]} c4 {[%emt 0:00:03]} 27. Qc1 {[%emt 0:00:50]} Kh7 {[%emt 0:00:07]} 28. Rd1 {[%emt 0:00:06]} Bb6 {[%emt 0:00:21]} 29. Kg2 {[%emt 0:00:33]} Bc5 {[%emt 0:00:08]} (29... Qh5 $11 30. f3 (30. Rxb5 Qe2 $17) 30... Bc5) 30. d6 $1 $14 {[%emt 0:00:03]} Bd4 {[%emt 0:01:44]} (30... b4 $6 31. Rd5 Bxf2 32. Kxf2 $18) ({Black should try} 30... Rb6 $1 $14) 31. Nxd4 $18 {[%emt 0:00:02]} exd4 {[%emt 0:00:02]} 32. Rxd4 {[%emt 0:00:00]} Qe6 {[%emt 0:00:08] [#]} 33. Qf4 $1 {[%emt 0:01:28]} c3 {[%emt 0:01:10]} (33... g5 $16 34. Qd2 Rb6 (34... Rxd6 $2 35. Rxd6 Qe5 36. Rd5 $18)) 34. e5 $18 {[%emt 0:00:03]} Rdc8 $2 {[%emt 0:00:10]} (34... Rbc8 35. Qe4+ (35. Rxb5 c2 $14) 35... Kh8) 35. d7 $18 {[%emt 0:00:26]} Rd8 {[%emt 0:00:01]} 36. Rd6 {[%emt 0:00:02]} Qa2 {[%emt 0:00:11]} 37. Qe4+ {[%emt 0:00:06]} Kh8 {[%emt 0:00:02]} 38. e6 {[%emt 0:00:05]} c2 {[%emt 0:00:05]} 39. Re1 {[%emt 0:00:16]} Qa3 {[%emt 0:00:49]} 40. e7 {[%emt 0:00:11]} Qxd6 {[%emt 0:00:04]} 41. e8=Q+ {[%emt 0:00:01]} ({Inferior is} 41. e8=B b4 42. Qxc2 b3 $17) (41. e8=R+ $142 Rxe8 42. dxe8=Q+ (42. dxe8=R+ Rxe8 43. Qxe8+ Kh7 $18) 42... Rxe8 43. Qxe8+ Kh7 44. Qe4+ (44. Qxb5 Qg6 $18) 44... Qg6 45. Qxg6+ Kxg6 46. Rc1) 1-0

[Event "CCT Julius Baer-D3 2024"]
[Site "Online"]
[Date "2024.09.27"]
[Round "2.2"]
[White "Keymer, Vincent"]
[Black "Santos Latasa, Jaime"]
[Result "1/2-1/2"]
[ECO "A34"]
[WhiteElo "2730"]
[BlackElo "2624"]
[Annotator "TA"]
[PlyCount "63"]
[EventDate "2024.09.25"]
[EventType "swiss"]
[EventCountry "NET"]
[SourceTitle "playchess.com"]
[Source "ChessBase"]
[SourceQuality "1"]
[TimeControl "600+2"]

{[%evp 11,63,13,18,9,35,29,42,60,47,-96,56,48,45,56,62,78,88,84,68,51,54,64,54,33,61,64,68,50,86,18,85,0,0,0,0,-3,0,0,0,-3,-16,-2,0,0,0,0,0,0,0,0,0,0,0,0]} 1. Nf3 {[%emt 0:00:02]} Nf6 {[%emt 0:00:04]} 2. c4 {[%emt 0:00:02]} c5 {[%emt 0:00:01]} 3. Nc3 {[%emt 0:00:02]} Nc6 {[%emt 0:00:01]} 4. g3 {[%emt 0:00:01]} d5 {[%emt 0:00:03]} 5. cxd5 {[%emt 0:00:01]} Nxd5 {[%emt 0:00:01]} 6. Bg2 {[%emt 0:00:00]} g6 {[%emt 0:00:03]} 7. h4 {[%emt 0:00:07]} Bg7 {[%emt 0:00:05]} 8. h5 {[%emt 0:00:02]} Bg4 {[%emt 0:00:01]} 9. Qa4 {[%emt 0:01:26] White is slightly better.} gxh5 {[%emt 0:01:09]} (9... Bxh5 $2 {loses.} 10. Nxd5 Qxd5 11. g4 $18) 10. Ng5 {[%emt 0:01:12] [#]} (10. Nh2 $14 {stays ahead.} Be6 11. Nf1) 10... Nb6 $2 {[%emt 0:00:09]} (10... e6 $1 $17 11. Nge4 O-O) 11. Bxc6+ $14 {[%emt 0:00:14]} bxc6 {[%emt 0:00:02]} 12. Qxc6+ {[%emt 0:00:01]} Qd7 {[%emt 0:00:25]} 13. Qxd7+ {[%emt 0:00:03]} Nxd7 {[%emt 0:00:18]} 14. f3 {[%emt 0:00:27]} Bf5 {[%emt 0:00:03]} 15. Rxh5 {[%emt 0:00:02][%cal Og5f7]} Bg6 {[%emt 0:00:02]} 16. Rh1 {[%emt 0:00:06]} c4 {[%emt 0:00:05]} 17. Nh3 {[%emt 0:00:18]} Nc5 {[%emt 0:00:20]} 18. Nf4 {[%emt 0:00:04]} Kd7 {[%emt 0:00:02]} 19. Kf2 {[%emt 0:00:20][%cal Od2d4]} Rab8 {[%emt 0:00:15]} 20. Kg2 {[%emt 0:00:28]} ({White should play} 20. Rh4 $16) 20... Be5 {[%emt 0:00:25]} (20... Ne6 $11 {remains equal.}) 21. Nxg6 {[%emt 0:01:40]} ({White should try} 21. Rh4 $16) 21... hxg6 $11 {[%emt 0:00:04] The position is equal.} 22. Rxh8 {[%emt 0:00:03]} Bxh8 {[%emt 0:00:02]} 23. b3 {[%emt 0:00:43]} cxb3 {[%emt 0:00:18]} 24. axb3 {[%emt 0:00:01]} Rb7 {[%emt 0:00:07]} 25. b4 {[%emt 0:00:34]} Nb3 {[%emt 0:00:03]} 26. Rb1 {[%emt 0:00:01]} Nxc1 {[%emt 0:00:02]} 27. Rxc1 {[%emt 0:00:01]} Rxb4 {[%emt 0:00:03] KRB-KRN} 28. Ra1 {[%emt 0:00:14]} Bd4 {[%emt 0:00:18]} 29. e3 {[%emt 0:00:13]} Bb6 {[%emt 0:00:09]} 30. Kf1 {[%emt 0:00:03]} e6 {[%emt 0:00:08]} 31. Na4 {[%emt 0:00:11]} Kc6 {[%emt 0:00:22]} 32. Ke2 {[%emt 0:00:18] Weighted Error Value: White=0.22 (precise) /Black=0.21 (precise) .  Mistake:       	White=3     	Black=2      Inaccurate:     	---       	Black=3      OK:         	White=9     	Black=9      Best:        	White=1     	Black=1} 1/2-1/2